Cogmind - Beta 9.3 @@@ ROGUE MODE // 2020.01.02 @ 19:08:21 Player: 3.14 Result: Destroyed by L-31 Rogue with Katana Performance ------------- Evolutions (1) 500 Regions Visited (2) 400 Robots Destroyed (13) 65 Value Destroyed (336) 336 Prototype IDs (1) 20 Alien Tech Used (0) 0 Bonus (0) 0 TOTAL SCORE: 1321 Bonus ------- None Cogmind --------- Core Integrity 0/400 Matter 300/300 Energy 100/100 System Corruption 7% Temperature Cool (9) Movement Core (150) Ox2 Location -9/Materials Parts ------- > --- POWER (1) -------- (None) > --- PROPULSION (3) --- (None) > --- UTILITY (3) ------ Medium Storage Unit > --- WEAPON (2) ------- (None) > --- INVENTORY (8) ---- Faulty Improved Assault Rifle Peak State ------------ > --- POWER ------------ Light Nuclear Core > --- PROPULSION ------- Aluminum Leg Aluminum Leg Aluminum Leg > --- UTILITY ---------- Small Storage Unit Medium Storage Unit Improved Sensor Array > --- WEAPON ----------- Improved Assault Rifle Improved Assault Rifle > --- INVENTORY -------- Light Nuclear Core Aluminum Leg Aluminum Leg Light Assault Rifle Light Assault Rifle Improved Assault Rifle Improved Assault Rifle [Rating: 17] Favorites ----------- Power Ion Engine Engine Ion Engine Power Core Light Nuclear Core Propulsion Light Treads Treads Light Treads Leg Aluminum Leg Utility Small Storage Unit Device Improved Sensor Array Storage Small Storage Unit Protection Propulsion Shielding Weapon Improved Assault Rifle Ballistic Gun Improved Assault Rifle Build | -11 -10 -9 ------- Run | Scr Mat Mat Slots Evolved 2 | . . 2 Power . | . . . Propulsion 1 | . . 1 Utility 1 | . . 1 Weapon . | . . . Parts Attached 29 | 7 1 21 Power 3 | 1 . 2 Engine 1 | 1 . . Core 2 | . . 2 Reactor . | . . . Propulsion 12 | 2 . 10 Treads 4 | 2 . 2 Leg 8 | . . 8 Wheel . | . . . Hover . | . . . Flight . | . . . Utility 5 | 2 . 3 Device 1 | . . 1 Storage 3 | 2 . 1 Processor . | . . . Hackware . | . . . Protection 1 | . . 1 Artifact . | . . . Weapon 9 | 2 1 6 Energy Gun . | . . . Energy Cannon . | . . . Ballistic Gun 9 | 2 1 6 Ballistic Cannon . | . . . Launcher . | . . . Special Weapon . | . . . Impact Weapon . | . . . Slashing Weapon . | . . . Piercing Weapon . | . . . Special Melee Weapon . | . . . Unidentified Prototypes 1 | . . 1 Parts Lost 16 | . . 16 Power 3 | . . 3 Propulsion 6 | . . 6 Utility 3 | . . 3 Weapon 4 | . . 4 Highest Loss Streak 12 | . . 12 Average Slot Usage (%) 92 | . 100 89 Engine 7 | . 14 4 Core 3 | . . 4 Treads 17 | . 28 13 Leg 12 | . . 17 Device 1 | . . 1 Storage 23 | . 28 21 Protection 3 | . . 4 Ballistic Gun 23 | . 28 21 Naked Turns . | . . . Heaviest Build 24 | 15 15 24 Greatest Support 60 | 40 40 60 Greatest Overweight (x) 2 | . . 2 Average Overweight (x) . | . . . Largest Inventory Capacity 10 | 8 8 10 Average Capacity 8 | 5 8 9 Most Carried 10 | 4 8 10 Average Carried 7 | 2 7 7 Final Capacity 8 | 8 8 8 Final Carried 8 | 4 8 1 Class Distribution -------------------- 100% | Mutant Dominant Class ---------------- Mutant | -10/Materials Mutant | -9/Materials Resources | -11 -10 -9 ----------- Run | Scr Mat Mat Matter Collected 370 | 233 20 117 Remotely . | . . . Salvage Created 388 | 59 95 234 Parts 31 | 3 10 18 Haulers Intercepted 1 | . . 1 Recyclers Shooed 2 | . 2 . Parts Field Recycled . | . . . Retrieved Matter . | . . . Parts Self-Destructed . | . . . Prevented . | . . . Kills | -11 -10 -9 ------- Run | Scr Mat Mat Combat Hostiles Destroyed 11 | . 6 5 Melee 11 | . 6 5 Classes Destroyed 4 | 1 2 1 Hauler 1 | . . 1 Recycler 1 | 1 . . Swarmer 3 | . 3 . Grunt 8 | . 3 5 Best Kill Streak 4 | 1 3 4 Combat Bots Only 4 | . 3 4 Max Kills in Single Turn 1 | 1 1 1 Gunslinging . | . . . Exploded . | . . . Melee 1 | . 1 1 Uniques/NPCs Destroyed . | . . . Combat | -11 -10 -9 -------- Run | Scr Mat Mat Damage Taken 2724 | . 267 2457 Core 468 | . 39 429 Absorbed by Shields . | . . . Core Remaining (%) 92 | 100 84 . Volleys Fired . | . . . Largest . | . . . Hottest . | . . . Shots Fired . | . . . Gun . | . . . Cannon . | . . . Launcher . | . . . Special . | . . . Kinetic . | . . . Thermal . | . . . Explosive . | . . . Electromagnetic . | . . . Robot Hit Streak . | . . . Robot Miss Streak . | . . . Penetration Max . | . . . Secondary Targets . | . . . Shots Hit Robots . | . . . Core Hits 22 | . 4 18 Critical Hits . | . . . Critical Kills . | . . . Critical Parts Destroyed . | . . . Melee Attacks . | . . . Impact . | . . . Slashing . | . . . Piercing . | . . . Sneak Attacks . | . . . Combat Hostiles . | . . . Follow-up Attacks . | . . . Damage Inflicted 300 | 4 59 237 Guns . | . . . Cannons . | . . . Explosions . | . . . Melee . | . . . Ramming 300 | 4 59 237 Kinetic . | . . . Thermal . | . . . Explosive . | . . . Electromagnetic . | . . . Impact . | . . . Slashing . | . . . Piercing . | . . . Highest Corruption 7 | . . 7 Average Corruption 2 | . . 2 Corruption Purged . | . . . Effects 4 | . . 4 Message Errors 2 | . . 2 Matter Fused 1 | . . 1 Data Loss (minor) 1 | . . 1 Overload Shots . | . . . Overflow Damage . | . . . Projectiles . | . . . Explosions . | . . . Melee . | . . . Knockbacks 1 | . . 1 Impact 1 | . . 1 Kinetic . | . . . Secondary . | . . . Self-Inflicted Damage 26 | . . 26 Shots . | . . . Rammed 94 | 4 22 68 Targets Rammed 152 | 5 28 119 Kicked 46 | . . 46 Crushed 12 | 1 6 5 Highest Temperature . | . . . Average Temperature . | . . . Received Heat Transfer 771 | . 54 717 Siege Activations . | . . . Robots Corrupted . | . . . Combat Hostiles . | . . . Parts Fried . | . . . Impact Corruptions . | . . . Robots Melted . | . . . Combat Hostiles . | . . . Parts Melted . | . . . Heat Transferred . | . . . Parts Sabotaged . | . . . Parts Stolen . | . . . Parts Stripped . | . . . Power Chain Reactions . | . . . Missiles Intercepted . | . . . Alert | -11 -10 -9 ------- Run | Scr Mat Mat Peak Influence 174 | 5 174 168 Average Influence 69 | 1 94 69 Maximum Alert Level . | . . . Low Security (%) 100 | 100 100 100 Level 1 . | . . . Level 2 . | . . . Level 3 . | . . . Level 4 . | . . . Level 5 . | . . . High Security . | . . . Max Security . | . . . Squads Dispatched 4 | . 2 2 Investigation 2 | . . 2 Extermination . | . . . Reinforcement 2 | . 2 . Assault . | . . . Garrison . | . . . Intercept . | . . . Construction Impeded . | . . . Haulers Reinforced . | . . . Stealth | -11 -10 -9 --------- Run | Scr Mat Mat Distress Signals 2 | . 1 1 Communications Jammed . | . . . Distress Signals . | . . . Times Spotted 23 | . 9 14 Peak Tracking Total 4 | . 3 4 Tactical Retreats 4 | . . 4 Traps | -11 -10 -9 ------- Run | Scr Mat Mat Traps Triggered 1 | . . 1 Indirectly . | . . . Trap Hack Attempts . | . . . Triggered . | . . . Disarmed . | . . . Reprogrammed . | . . . Reused . | . . . Traps Extracted . | . . . Installed . | . . . Triggered . | . . . Machines | -11 -10 -9 ---------- Run | Scr Mat Mat Machines Disabled . | . . . Max in Single Turn . | . . . Machines Sabotaged . | . . . Garrisons Compromised . | . . . Overloaded Fab Kills . | . . . Fab Network Shutdowns . | . . . Hacking | -11 -10 -9 --------- Run | Scr Mat Mat Machines Accessed 4 | . 1 3 Terminals 3 | . 1 2 Fabricators . | . . . Repair Stations 1 | . . 1 Recycling Units . | . . . Scanalyzers . | . . . Garrison Access . | . . . Total Hacks 16 | . 3 13 Successful 9 | . 3 6 Failed 7 | . . 7 Catastrophic . | . . . Database Lockouts . | . . . Manual 10 | . 2 8 Terminals 14 | . 3 11 Fabricators . | . . . Repair Stations 2 | . . 2 Recycling Units . | . . . Scanalyzers . | . . . Garrison Access . | . . . Terminal Hacks 4 | . 2 2 Robot Analysis 1 | . 1 . Terminal Index 1 | . . 1 Hauler Manifests 2 | . 1 1 Fabricator Hacks . | . . . Repair Station Hacks 2 | . . 2 Scan Component 1 | . . 1 Repair 1 | . . 1 Recycling Unit Hacks . | . . . Scanalyzer . | . . . Garrison Access Hacks . | . . . Unauthorized Hacks 10 | . 2 8 Terminals 3 | . 1 2 Botnet 2 | . 1 1 Operators 1 | . . 1 Fabricators . | . . . Repair Stations . | . . . Recycling Units . | . . . Scanalyzers . | . . . Garrison Access . | . . . Data Cores Recovered . | . . . Used . | . . . Hacking Detections 4 | . 1 3 Full Trace Events 1 | . . 1 Feedback Events . | . . . Feedback Blocked . | . . . Robot Schematics Acquired . | . . . Robots Built . | . . . Matter . | . . . Time . | . . . Total Robot Build Rating . | . . . Part Schematics Acquired . | . . . Parts Built . | . . . Matter . | . . . Time . | . . . Total Part Build Rating . | . . . Parts Repaired 1 | . . 1 Time 26 | . . 26 Parts Recycled . | . . . Recycled Matter . | . . . Retrieved Matter . | . . . Retrieved Components . | . . . Parts Scanalyzed . | . . . Part Schematics Acquired . | . . . Parts Damaged . | . . . Bothacking | -11 -10 -9 ------------ Run | Scr Mat Mat Used RIF Installer . | . . . Robots Hacked . | . . . Non-combat . | . . . Combat . | . . . Robot Hacks Applied . | . . . Relay Couplers Released . | . . . Robots Rewired . | . . . Allies Hacked . | . . . Hacks Repelled . | . . . Allies | -11 -10 -9 -------- Run | Scr Mat Mat Total Allies . | . . . Largest Group . | . . . Highest-Rated Group . | . . . Highest-Rated Ally . | . . . Total Orders . | . . . Ally Attacks . | . . . Total Damage . | . . . Kills . | . . . Allies Corrupted . | . . . Allies Melted . | . . . Intel | -11 -10 -9 ------- Run | Scr Mat Mat Robot Analysis Total 1 | . 1 . Derelict Logs Recovered . | . . . Drone Launches . | . . . Drone Recoveries . | . . . Exploration | -11 -10 -9 ------------- Run | Scr Mat Mat Turns Passed 993 | 95 250 648 Spaces Moved 457 | 47 118 292 Core 2 | 1 . 1 Treads 288 | 46 118 124 Legs 167 | . . 167 Wheels . | . . . Hover . | . . . Flight . | . . . Fastest Speed 50 | 50 160 120 Average Speed 145 | 157 160 137 Slowest Speed 160 | 160 160 160 Overloaded Moves . | . . . Propulsion Burnouts . | . . . Robots Hopped . | . . . Cave-ins Triggered . | . . . Exploration Rate (%) 20 | 5 32 24 Regions Visited 2 Branch Regions . Pre-discovered Areas . | . . . Known Exits Taken . | . . . Unknown Exits Taken 2 | 1 1 . Scrap Searched . | . . . Spaces Dug . | . . . Terrain Destroyed . | . . . Melee . | . . . Projectile . | . . . AOE . | . . . Actions | -11 -10 -9 --------- Run | Scr Mat Mat Total 723 | 62 164 497 Wait 59 | . 11 48 Move 455 | 46 117 292 Hop . | . . . Pick Up 17 | 4 5 8 Fast Attach 11 | 7 . 4 Attach 12 | . . 12 Detach . | . . . Swap 6 | . 1 5 Drop 11 | . 2 9 Fire . | . . . Melee . | . . . Ram 2 | . . 2 Kick 84 | . . 84 Crush 66 | 5 28 33 Escape Stasis . | . . . Rewire . | . . . Trap . | . . . Miscellaneous . | . . . Route ------- -11/Scrapyard -10/Materials -9/Materials History --------- Turn | Location | Event 50 | -11/Scrapyard | Discovered new exit (range 15) 96 | -11/Scrapyard | Entered Materials 310 | -10/Materials | Build established: Mutant 324 | -10/Materials | Discovered new exit (range 15) 346 | -10/Materials | Entered another Materials area 346 | -9/Materials | Evolved 2 slots: Propulsion x1, Utility x1 747 | -9/Materials | Repaired Aluminum Leg 917 | -9/Materials | Core integrity fell below 50% 986 | -9/Materials | Core integrity fell below 20% 994 | -9/Materials | Destroyed by L-31 Rogue with Katana Last Messages --------------- 00981_ Destabilizing: System corrupted (+2). 00982_ Lgt. Assault Rifle destroyed. 00983_ K-01 Serf collects debris. 00983_ Kicked L-31 Rogue out of the way. 00984_ Lgt. Nuclear Core destroyed. 00984_ Slammed into L-31 Rogue. 00984_ Destabilizing: Short circuit. 00984_ Broken Imp. Assault Rifle permanently disabled. 00986_ K-01 Serf collects debris. 00986_ Slammed into L-31 Rogue. 00988_ Broken Imp. Assault Rifle destroyed. 00989_ System corrupted: Matter fused (-10). 00989_ Acquired 4 matter. 00989_ Slammed into L-31 Rogue. 00989_ Destabilizing: System corrupted (+1). 00989_ Aluminum Leg destroyed. 00990_ Slammed into L-31 Rogue. 00991_ K-01 Serf collects debris. 00992_ Slammed into L-31 Rogue. 00994_ K-01 Serf collects debris. Map ----- +----------------------------------------------------+ | ?????????????????????????????????????????????????? | | ?????????????????????????????????????????????????? | | ?????????????????????????????????????????????????? | | ?????????????????????????????????????????????????? | | ?????????????????????????????????????????????????? | | ?????????????????????????????????????????????????? | | ?????????????????????????????????????????????????? | | ?????????????????????????????????????????????????? | | ?????????????????????????????????????????????????? | | ?????????????????????????????????????????????????? | | ?????????????????????????????????????????????????? | | ?????????????????????????????????????????????????? | | ?????????????????????????????????????????????????? | | ?????????????????????????????????????????????????? | | ?????????????????????????????????????????????????? | | ?????????????????????????????????????????????????? | | ?????????????????????????????????????????????????? | | ????????????o????????????????????????????????????? | | ?????????????????????????????????????????????????? | | ????????????????????#################????????????? | | ????????????????????? #????????????? | | ????????????????????????? #???????###### | | ????????????? ??????????????? #???????#!!**! | | ????????????? #???????########## % #???????#!!**! | | ????????????? #???????#%%%%%%%%#%%%#???????# | | ????????????? #???????#%@l%%%%%#%%%#?????### #? | | ???????????? #???????#%%%%%%%%+%%%####### ## | | ???????????? #???????#%""%%%%Y#%%% | | ???????????? #???????#%""%%k%!# ! # | | ???????????? #???????#%"""%%%%# #? | | ???????????? +???????#%""%%%%%########### #? | | ???????????? #???????# """[%%%#?????????## ##? | | ???????????? #???????# = %%#??????????# #?? | | ???????##### #???????###############?????# #?? | | ???????# #???????????????# ####### #?? | | ???????# ###########?????# #?? | | ???????# # ?????# #?? | | ???????####+#### """ """ #???# #?? | | ????????# # """ """ #???# ###+#######?? | | ????????#"" # """ """ ####### # # #??? | | ????????#"T !# ?# # # # """ #??? | | ????????#"" # [ ???# + # # """ #??? | | ????????# #? ?????# ### # """ #??? | | ????????# #?##+######## """#?# # #??? | | ????????######+#?# + R"#?# # #??? | | ?????????????# #?# ######## """#?# # #??? | | ?????????????# #?# #??????# #?# # !! #??? | | ?????????????# #?# #??????###/###?# # !! #??? | | ????????????## ### #????????# #???# ##########??? | | ????????????# ##########+#???# #???????????? | +----------------------------------------------------+ Best States ------------- Heat Dissipation 28 Energy Generation 14 Energy Capacity 250 Matter Stores 300 Matter Capacity 300 Sight Range 16 Robot Scan Range 13 Terrain Scan Density 10 Propulsion Shielding 33 Evasion (%) 40 Recoil Reduction 3 Item Schematics ----------------- None Robot Schematics ------------------ None Fabricated ------------ Nothing Alien Tech Used ----------------- None Achievements -------------- None Challenges ------------ None Game ------ Seed LightpackSurgeBoomstick Manual? 0 Play Time 00:10:47 Cumulative 430.8 hours Start 2020.01.02 @ 19:02:02 End 2020.01.02 @ 19:08:21 Sessions 1 Manual Loads 0 Difficulty Rogue Special Mode None Game No. 752 Rogue 752 Adventurer 0 Explorer 0 Win Type - Total 32 Types 24/0/3/4/1/0/0 Lore% 93 Gallery% 92 Achievement% 80 Wizard Run 0 Options --------- ASCII 1 Keyboard 0 Movement Numpad Keybinds 0 Fullscreen 0 Font 14/SmallcapsGlow Map View 76x50 Tactical HUD 1 Map Filters NONE Filters NONE Steam 1 RUN: 5078de5e-b864-4fbb-bec7-c5beae31643b